bitfinex/quotes_BTCUSD_20251113
["timestamp","ask_amount","ask_price","bid_price","bid_amount"]
[1763058357731,0.00030437,99030.0,99029.0,0.09041]
[1763058357955,0.00030437,99030.0,99029.0,0.12075746]
[1763058358206,0.00030437,99030.0,99029.0,0.09041]
[1763058358496,0.00030437,99030.0,99029.0,0.003]
[1763058359018,0.00030437,99030.0,99029.0,0.04304618]
[1763058359683,0.00030437,99030.0,99023.0,0.03034933]
[1763058359996,0.00030437,99030.0,99029.0,0.002]
[1763058360455,0.02030437,99030.0,99021.0,0.002]
[1763058360693,0.09816915,99024.0,99021.0,0.002]
[1763058361220,0.09816915,99024.0,99022.0,0.09041]
[1763058361474,0.00030437,99030.0,99029.0,0.20196104]
[1763058362298,0.00030437,99030.0,99029.0,0.56837978]
[1763058362501,0.01179318,99076.0,99050.0,0.90154269]
[1763058362709,0.01841851,99067.0,99050.0,0.00013997]
[1763058362914,0.01841851,99066.0,99065.0,0.20188717]
[1763058363127,0.01179318,99076.0,99075.0,0.20186727]
[1763058363559,0.01179318,99076.0,99074.0,0.24707741]
[1763058363765,0.04613,99133.0,99105.0,0.20180522]
[1763058363975,0.04613,99133.0,99076.0,0.04341874]
[1763058363976,0.09816915,99098.0,99083.0,0.06306]
[1763058364175,0.09816915,99091.0,99083.0,0.006306]
[1763058364416,0.01843786,99090.0,99089.0,0.20183748]
[1763058364609,0.09816915,99109.0,99103.0,0.20180895]
[1763058364829,0.09816915,99109.0,99108.0,0.20180005]
[1763058365039,0.0002,99130.0,99104.0,0.09041]
[1763058365040,0.0202,99130.0,99112.0,0.10827]
[1763058365314,0.01844802,99124.0,99112.0,0.04521]
[1763058365544,0.0002,99130.0,99123.0,0.20176791]
[1763058365777,0.0002,99130.0,99113.0,0.09041]
[1763058365778,0.0002,99130.0,99124.0,0.06306]
[1763058366019,0.01842523,99125.0,99124.0,0.06306]
[1763058366248,0.0002,99130.0,99125.0,0.09041]
[1763058366496,0.0002,99130.0,99129.0,0.06578]
[1763058366697,0.0002,99130.0,99129.0,0.36641874]
[1763058366908,0.0002,99130.0,99129.0,0.323]
[1763058367117,0.90174269,99180.0,99138.0,0.04341874]
[1763058367118,0.09816915,99153.0,99138.0,0.04341874]
[1763058367331,0.09816915,99153.0,99152.0,0.24512924]
[1763058367538,0.0002,99180.0,99168.0,0.24688796]
[1763058367757,0.0002,99180.0,99169.0,0.20167592]
[1763058367928,0.2,99210.0,99169.0,0.20167592]
[1763058367929,0.0036435,99192.0,99169.0,0.13382874]
[1763058368177,0.0183832,99191.0,99172.0,0.20166876]
[1763058368387,0.00410901,99192.0,99191.0,0.10919874]
[1763058368591,0.09816915,99207.0,99200.0,0.0411]
[1763058368803,0.01581563,99216.0,99201.0,0.08631]
[1763058369014,0.09816915,99212.0,99207.0,0.2015984]
[1763058369197,0.01581413,99235.0,99207.0,0.20159793]
[1763058369402,0.09816915,99223.0,99216.0,0.06578]
[1763058369640,0.09816915,99223.0,99200.0,0.04123997]
[1763058369850,0.09816915,99201.0,99200.0,0.00013997]
[1763058370066,0.10798606,99201.0,99200.0,0.00013997]
[1763058370439,0.10798606,99201.0,99194.0,0.01723997]
[1763058370851,0.02,99200.0,99194.0,0.01723997]
[1763058371264,0.09816915,99200.0,99194.0,0.01723997]
[1763058371879,0.11816915,99200.0,99194.0,0.01723997]
[1763058372212,0.04936,99195.0,99170.0,0.01582049]
[1763058372418,0.04936,99195.0,99170.0,0.00046551]
[1763058372419,0.02,99180.0,99170.0,0.00046551]
[1763058373037,0.09816915,99182.0,99170.0,0.00046551]
[1763058373238,0.09811365,99182.0,99179.0,0.06245]
[1763058373439,0.02,99180.0,99179.0,0.06245]
[1763058373652,0.09811365,99182.0,99171.0,0.06245]
[1763058373857,0.02,99180.0,99170.0,0.00046551]
[1763058374063,0.22,99180.0,99170.0,0.00046551]
[1763058374265,0.09262,99179.0,99170.0,0.00146551]
[1763058374920,0.06303,99171.0,99170.0,0.00146551]
[1763058375352,0.09262,99179.0,99170.0,0.00046551]
[1763058375562,0.09262,99179.0,99127.0,0.03031318]
[1763058375784,0.09816915,99143.0,99135.0,0.20174356]
[1763058376005,0.09816915,99143.0,99130.0,0.01008776]
[1763058376228,0.02,99190.0,99180.0,0.20165171]
[1763058376452,0.09816915,99200.0,99180.0,0.20165171]
[1763058376721,0.09816915,99200.0,99180.0,0.19965171]
[1763058376939,0.09857896,99182.0,99181.0,0.08046359]
[1763058377150,0.09857896,99182.0,99181.0,0.12388233]
[1763058377151,0.00046531,99182.0,99181.0,0.12388233]
[1763058377357,0.00146531,99182.0,99181.0,0.44688233]
[1763058377562,0.02,99230.0,99195.0,0.04341874]
[1763058377767,0.02,99230.0,99193.0,0.04341874]
[1763058377768,0.02,99220.0,99193.0,0.04341874]
[1763058377999,0.92154269,99230.0,99198.0,0.04341874]
[1763058378209,0.02,99220.0,99198.0,0.04341874]
[1763058378414,0.02,99220.0,99197.0,0.04341874]
[1763058378619,0.02,99220.0,99195.0,0.04341874]
[1763058379039,0.99416269,99240.0,99199.0,0.20161385]
[1763058379263,0.02,99230.0,99200.0,0.2016129]
[1763058379463,0.99416269,99240.0,99200.0,0.2016129]
[1763058379674,0.92154269,99230.0,99200.0,0.2016129]
[1763058379899,0.02,99220.0,99199.0,0.02016139]
[1763058380120,0.02,99220.0,99182.0,0.37513295]
[1763058380364,0.02,99210.0,99183.0,0.04341874]
[1763058380601,0.323,99236.0,99200.0,0.002]
[1763058380825,0.60843358,99237.0,99200.0,0.002]
[1763058380826,0.90154269,99220.0,99200.0,0.002]
[1763058381051,0.02,99210.0,99200.0,0.002]
[1763058381255,0.92154269,99210.0,99200.0,0.002]
[1763058381667,1.14154269,99210.0,99200.0,0.002]
[1763058382106,0.02,99190.0,99163.0,0.20168812]
[1763058382308,0.09816915,99176.0,99163.0,0.00046531]
[1763058382619,0.09816915,99176.0,99164.0,0.20168609]
[1763058382828,0.09816915,99176.0,99163.0,0.00046531]
[1763058383923,0.09816915,99176.0,99163.0,0.00146531]
[1763058384134,0.09816915,99174.0,99164.0,0.0255]
[1763058384336,0.01181692,99173.0,99164.0,0.0255]
[1763058384746,0.01181692,99173.0,99163.0,0.00146531]
[1763058384747,0.09816915,99174.0,99163.0,0.00096531]
[1763058385185,0.02,99160.0,99147.0,0.0255]
[1763058385387,0.02,99160.0,99138.0,0.03030864]
[1763058385388,0.09816915,99156.0,99145.0,0.2017243]
[1763058385798,0.09816915,99156.0,99138.0,0.03030864]
[1763058386008,0.09816915,99156.0,99122.0,0.20177155]
[1763058386176,0.09816915,99156.0,99136.0,0.2017423]
[1763058386527,0.09816915,99156.0,99138.0,0.20173765]
[1763058386730,0.09816915,99156.0,99134.0,0.20174615]
[1763058386933,0.02046531,99160.0,99120.0,0.01008878]
[1763058386934,0.00046531,99160.0,99138.0,0.002]
[1763058387147,0.00046531,99160.0,99159.0,0.20169626]
[1763058387302,0.00046531,99160.0,99159.0,0.22186589]
[1763058387505,0.00046531,99160.0,99159.0,0.20169626]
[1763058388287,0.00046531,99160.0,99158.0,0.20169823]
[1763058388491,0.00046531,99160.0,99135.0,0.03030883]
[1763058388695,0.00046531,99160.0,99158.0,0.2016976]
[1763058389311,0.00046531,99160.0,99144.0,0.04341874]
[1763058389540,0.00046531,99160.0,99120.0,0.01008878]
[1763058389541,0.00046531,99160.0,99159.0,0.001]
[1763058389968,0.00046531,99160.0,99158.0,0.20169748]
[1763058390282,0.09816915,99159.0,99158.0,0.002]
[1763058390912,0.16169915,99159.0,99158.0,0.002]
[1763058391335,0.195852,99159.0,99158.0,0.002]
[1763058391542,0.195852,99159.0,99110.0,0.21188508]
[1763058391543,0.2,99150.0,99110.0,0.21188508]
[1763058391746,0.09816915,99124.0,99114.0,0.20178694]
[1763058391972,0.09816915,99124.0,99111.0,0.20179357]
[1763058392169,0.02,99120.0,99080.0,0.91856236]
[1763058392370,0.02,99120.0,99090.0,0.01009183]
[1763058392632,0.90154269,99120.0,99093.0,0.20182892]
[1763058392746,0.90154269,99120.0,99090.0,0.01009183]
[1763058392946,0.90154269,99120.0,99090.0,0.01023108]
[1763058392947,0.92154269,99120.0,99090.0,0.01023108]
[1763058393191,1.02002605,99120.0,99095.0,0.2018261]
[1763058393395,0.02,99110.0,99090.0,0.01023108]
[1763058393672,0.09816915,99102.0,99090.0,0.00113925]
[1763058393807,0.02,99100.0,99090.0,0.00113925]
[1763058394191,0.09816915,99102.0,99090.0,0.00113925]
[1763058394647,0.09816915,99102.0,99090.0,0.00013925]
[1763058394876,0.02,99100.0,99090.0,0.00013925]
[1763058395037,0.09816915,99102.0,99090.0,0.00013925]
[1763058395241,0.09816915,99102.0,99095.0,0.001]
[1763058395601,0.09816915,99102.0,99090.0,0.00013925]
[1763058395832,0.06353,99091.0,99090.0,0.00013925]
[1763058396035,0.06353,99091.0,99090.0,0.00095113]
[1763058396036,2.08196045,99091.0,99090.0,0.00095113]
[1763058396446,2.08196045,99091.0,99060.0,0.0004]
[1763058396643,0.02,99070.0,99060.0,0.0004]
[1763058397072,0.00013943,99091.0,99080.0,0.20185563]
[1763058397274,0.00013943,99091.0,99062.0,0.04341874]
[1763058397275,0.00013943,99091.0,99090.0,0.20183671]
[1763058397692,0.00013943,99091.0,99090.0,0.24525545]
[1763058398110,0.0158276,99138.0,99118.0,0.20177969]
[1763058398751,0.90154269,99150.0,99130.0,0.20175338]
[1763058398752,0.92154269,99150.0,99130.0,0.20175338]
[1763058398955,0.09816915,99131.0,99111.0,0.04341874]
[1763058399162,0.09816915,99131.0,99129.0,0.20175603]
[1763058399360,0.0986359,99148.0,99111.0,0.04341874]
[1763058399361,0.0986359,99148.0,99111.0,0.36641874]
[1763058399601,0.0986359,99148.0,99136.0,0.04341874]
[1763058399813,0.0986359,99148.0,99124.0,0.04341874]
[1763058400013,0.0986359,99148.0,99129.0,0.24517401]
[1763058400214,0.0986359,99148.0,99141.0,0.20173169]
[1763058400422,0.00046675,99148.0,99143.0,0.04341874]
[1763058400619,0.00046675,99148.0,99146.0,0.20172083]
[1763058401447,0.00046675,99148.0,99142.0,0.04341874]
[1763058401650,0.00046675,99148.0,99144.0,0.04341874]
[1763058401851,0.09816915,99146.0,99104.0,0.30271009]
[1763058402055,0.09816915,99146.0,99125.0,0.04341874]
[1763058402395,0.09816915,99146.0,99129.0,0.20175643]
[1763058402540,0.09816915,99146.0,99131.0,0.20175226]
[1763058402746,0.09816915,99146.0,99116.0,0.04341874]
[1763058402952,0.09816915,99131.0,99118.0,0.04341874]
[1763058403149,0.09816915,99131.0,99100.0,0.01009081]
[1763058403354,0.09816915,99131.0,99101.0,0.20181431]
[1763058403588,0.09816915,99131.0,99111.0,0.20179271]
[1763058403786,0.09816915,99131.0,99114.0,0.20178698]
[1763058403985,0.09816915,99131.0,99101.0,0.04341874]
[1763058404164,0.09816915,99131.0,99100.0,0.9116335]
[1763058404165,0.02,99130.0,99114.0,0.04341874]
[1763058404373,0.09816915,99131.0,99113.0,0.36641874]
[1763058404617,0.09816915,99131.0,99129.0,0.002]
[1763058405054,0.09816915,99131.0,99103.0,0.36641874]
[1763058405269,0.09816915,99131.0,99109.0,0.04341874]
[1763058405443,0.09816915,99131.0,99129.0,0.20175603]
[1763058406080,0.09816915,99131.0,99128.0,0.20175833]
[1763058406279,0.09816915,99146.0,99119.0,0.20177598]
[1763058406466,0.09816915,99130.0,99111.0,0.323]
[1763058406664,0.09816915,99130.0,99125.0,0.20176366]
[1763058406807,0.09816915,99130.0,99115.0,0.323]
[1763058407008,0.09816915,99130.0,99124.0,0.20176546]
[1763058407212,0.09816915,99130.0,99125.0,0.201764]
[1763058407426,0.09816915,99130.0,99116.0,0.09818336]
[1763058407671,0.09816915,99130.0,99129.0,0.001]
[1763058408289,0.09816915,99130.0,99125.0,0.20176444]
[1763058408564,0.09816915,99130.0,99125.0,0.04035347]
[1763058408734,0.09816915,99130.0,99119.0,0.20177639]
[1763058408964,0.09816915,99130.0,99116.0,0.09818336]
[1763058409385,0.09816915,99130.0,99129.0,0.001]
[1763058409781,0.11816915,99130.0,99129.0,0.001]
[1763058410240,0.12998607,99130.0,99129.0,0.001]
[1763058410450,0.09816915,99130.0,99129.0,0.001]
[1763058411089,0.09816915,99130.0,99119.0,0.20177681]
[1763058411301,0.09816915,99130.0,99116.0,0.001]
[1763058411520,0.0657579,99129.0,99116.0,0.001]
[1763058411731,0.02,99120.0,99080.0,0.91163554]
[1763058411947,0.09816915,99097.0,99087.0,0.20184199]
[1763058412163,0.09816915,99097.0,99081.0,0.09116355]
[1763058412396,0.02,99110.0,99084.0,0.323]
[1763058412597,0.01846895,99109.0,99081.0,0.09116355]
[1763058412804,0.09816915,99097.0,99094.0,0.20182686]
[1763058413002,0.09816915,99097.0,99095.0,0.20182573]
[1763058413221,0.02,99110.0,99104.0,0.20180658]
[1763058413527,0.09816915,99130.0,99101.0,0.04341874]
[1763058413709,0.01847784,99129.0,99120.0,0.20177562]
[1763058413931,0.01847784,99128.0,99110.0,0.90154269]
[1763058414150,0.01847784,99127.0,99114.0,0.20178603]
[1763058414365,0.01847784,99126.0,99111.0,0.09015427]
[1763058414584,0.11863561,99130.0,99111.0,0.20179394]
[1763058414585,0.01847784,99125.0,99111.0,0.20179394]
[1763058414843,0.09863561,99130.0,99120.0,0.20177441]
[1763058415067,0.01948202,99129.0,99101.0,0.323]
[1763058415288,0.09816915,99115.0,99102.0,0.20181227]
[1763058415761,0.09816915,99115.0,99100.0,0.9116335]
[1763058415990,0.01848523,99114.0,99111.0,0.001]
[1763058416229,0.09816915,99115.0,99111.0,0.001]
[1763058416459,0.01848638,99114.0,99111.0,0.001]
[1763058416684,0.01848638,99113.0,99111.0,0.001]
[1763058416905,0.03015193,99112.0,99111.0,0.001]
[1763058417133,0.02,99110.0,99082.0,0.09848336]
[1763058417377,0.09816915,99096.0,99082.0,0.09848336]
[1763058417604,0.09816915,99096.0,99083.0,0.20185097]
[1763058417834,0.09816915,99096.0,99087.0,0.20184257]
[1763058418040,0.09816915,99096.0,99080.0,0.91163554]
[1763058418244,0.09816915,99096.0,99093.0,0.20182946]
[1763058418453,0.09816915,99096.0,99080.0,0.91163554]
[1763058418642,0.09816915,99096.0,99080.0,0.91177497]
[1763058418885,0.09816915,99096.0,99080.0,0.00013943]
[1763058419098,0.09816915,99096.0,99087.0,0.002]
[1763058419645,0.09816915,99096.0,99087.0,0.20384238]
[1763058420101,0.09816915,99096.0,99080.0,0.00013943]
[1763058420306,0.01181692,99095.0,99080.0,0.00013943]
[1763058420512,0.14572915,99081.0,99080.0,0.00113943]
[1763058420716,0.02,99080.0,99060.0,0.20189592]
[1763058420950,0.01849079,99079.0,99060.0,0.9010894]
[1763058421190,0.01849079,99078.0,99060.0,0.9010894]
[1763058421392,0.00013986,99080.0,99079.0,0.20185912]
[1763058421710,0.00013986,99080.0,99062.0,0.323]
[1763058421919,0.09816915,99077.0,99040.0,0.12860058]
[1763058422126,0.09797315,99077.0,99060.0,0.61422957]
[1763058422296,0.01847132,99076.0,99050.0,0.61422957]
[1763058422506,0.01847132,99075.0,99060.0,0.61422957]
[1763058422720,0.09816915,99062.0,99050.0,0.61422957]
[1763058422873,0.09816915,99062.0,99041.0,0.323]
[1763058423075,0.09797315,99077.0,99051.0,0.20191618]
[1763058423302,0.09797315,99077.0,99060.0,0.61522957]
[1763058423504,0.01845755,99076.0,99061.0,0.0340567]
[1763058423745,0.00013986,99080.0,99066.0,0.61422957]
[1763058423957,0.00013986,99080.0,99075.0,0.323]
[1763058424118,0.00013986,99080.0,99070.0,0.61422957]
[1763058424319,0.00013986,99080.0,99078.0,0.20186028]
[1763058424572,0.00013986,99080.0,99070.0,0.61422957]
[1763058424719,0.00013986,99080.0,99070.0,0.81610574]
[1763058425076,0.09816915,99079.0,99077.0,0.20186255]
[1763058425289,0.09816915,99079.0,99071.0,0.09848336]
[1763058425479,0.09816915,99079.0,99070.0,0.61422957]
[1763058425480,0.09816915,99079.0,99060.0,0.001]
[1763058425692,0.09816915,99079.0,99051.0,0.323]
[1763058426040,0.09816915,99079.0,99050.0,0.62132548]
[1763058426041,0.09816915,99079.0,99070.0,0.001]
[1763058426246,0.01844409,99078.0,99060.0,0.61422957]
[1763058426445,0.01844409,99077.0,99070.0,0.001]
[1763058426626,0.01844409,99076.0,99070.0,0.001]
[1763058426827,0.01844409,99075.0,99070.0,0.001]
[1763058427086,0.02,99070.0,99051.0,0.20191618]
[1763058427315,0.09816915,99058.0,99050.0,0.61422957]
[1763058427745,0.09816915,99058.0,99020.0,0.01554437]
[1763058427938,0.09816915,99058.0,99040.0,0.61422957]
[1763058428139,0.01,99070.0,99040.0,0.6243265]
[1763058428345,0.09816915,99058.0,99056.0,0.20190527]
[1763058428478,0.01583337,99075.0,99068.0,0.20188058]
[1763058428659,0.01583337,99075.0,99048.0,0.61422957]
[1763058428660,0.09816915,99079.0,99072.0,0.20187263]
[1763058428865,0.09816915,99079.0,99060.0,0.61422957]
[1763058429070,0.09816915,99064.0,99061.0,0.06142296]
[1763058429279,0.09816915,99064.0,99031.0,0.30293431]
[1763058429280,0.09816915,99064.0,99041.0,0.323]
[1763058429475,0.09816915,99064.0,99056.0,0.001]
[1763058429679,0.09816915,99064.0,99040.0,0.6243265]
[1763058429879,0.02,99060.0,99040.0,0.61422957]
[1763058430492,0.02,99060.0,99041.0,0.001]
[1763058430493,0.09816915,99049.0,99041.0,0.001]
[1763058431124,0.09816915,99049.0,99035.0,0.20194677]
[1763058431325,0.02,99060.0,99030.0,0.61422957]
[1763058431326,0.02,99060.0,99040.0,0.001]
[1763058431543,0.09816915,99048.0,99040.0,0.001]
[1763058432359,0.09816915,99048.0,99040.0,0.002]
[1763058432581,0.09816915,99048.0,99021.0,0.20884581]
[1763058432788,0.09816915,99048.0,99020.0,0.01009896]
[1763058432990,0.09816915,99048.0,99040.0,0.001]
[1763058433213,0.09816915,99048.0,99043.0,0.20193191]
[1763058433425,0.02013981,99060.0,99046.0,0.20192637]
[1763058433637,0.00013981,99060.0,99040.0,0.002]
[1763058433844,0.00013981,99060.0,99058.0,0.20190086]
[1763058434070,0.08464434,99064.0,99040.0,0.61422957]
[1763058434271,0.08464434,99064.0,99050.0,0.61422957]
[1763058434478,0.01583473,99092.0,99050.0,0.62432548]
[1763058434691,0.01583473,99092.0,99069.0,0.20187934]
[1763058434884,0.02,99090.0,99069.0,0.61422957]
[1763058435085,0.02,99090.0,99051.0,0.06142296]
[1763058435086,0.02,99090.0,99060.0,0.61422957]
[1763058435392,0.02,99090.0,99075.0,0.20186638]
[1763058435550,0.09114,99112.0,99078.0,0.20186115]
[1763058435759,0.02,99100.0,99076.0,0.06056107]
[1763058436136,0.09114,99124.0,99080.0,0.62432242]
[1763058436348,0.09816915,99130.0,99100.0,0.61422957]
[1763058436349,0.04608,99129.0,99100.0,0.61422957]
[1763058436544,0.09830914,99115.0,99100.0,0.63963751]
[1763058436743,0.00013999,99115.0,99080.0,0.08660875]
[1763058436933,0.0184119,99114.0,99081.0,0.323]
[1763058437142,0.09816915,99096.0,99094.0,0.20182685]
[1763058437334,0.00013999,99115.0,99092.0,0.04341874]
[1763058437571,0.00013999,99115.0,99105.0,0.61422957]
[1763058437781,0.63422957,99140.0,99100.0,0.33309081]
[1763058437987,0.09816915,99116.0,99101.0,0.05349076]
[1763058438368,0.001,99115.0,99101.0,0.05349076]
[1763058438823,0.09816915,99116.0,99098.0,0.20181923]
[1763058439004,0.01942122,99115.0,99088.0,0.20183922]
[1763058439228,0.09816915,99101.0,99090.0,0.61422957]
[1763058439350,0.09816915,99101.0,99091.0,0.06142296]
[1763058439542,0.09816915,99101.0,99099.0,0.20181702]
[1763058439747,0.09816915,99101.0,99098.0,0.20181905]
[1763058439977,0.09816915,99115.0,99113.0,0.20178869]
[1763058440176,0.09816915,99114.0,99100.0,0.61422957]
[1763058440378,0.02,99130.0,99101.0,0.06142296]
[1763058440640,0.02,99140.0,99101.0,0.06142296]
[1763058440843,0.61422957,99150.0,99114.0,0.20178696]
[1763058441082,0.09816915,99116.0,99100.0,0.00013999]
[1763058441293,0.09816915,99101.0,99100.0,0.00013999]
[1763058442068,0.11660599,99101.0,99100.0,0.00013999]
[1763058442272,0.17871599,99101.0,99100.0,0.00113999]
[1763058442700,0.2,99100.0,99046.0,0.00114]
[1763058442878,0.61422957,99090.0,99047.0,0.20192339]
[1763058443053,0.61422957,99090.0,99048.0,0.02019234]
[1763058443054,0.02,99070.0,99048.0,0.02019234]
[1763058443260,0.09816915,99058.0,99048.0,0.02019234]
[1763058443459,0.09816915,99058.0,99050.0,0.20191671]
[1763058443659,0.09816915,99058.0,99048.0,0.02019234]
[1763058443888,0.09816915,99058.0,99040.0,0.01009693]
[1763058444091,0.09816915,99058.0,99041.0,0.323]
[1763058444274,0.09816915,99058.0,99054.0,0.20190893]
[1763058444477,0.09816915,99058.0,99057.0,0.20190395]
[1763058444747,0.04608,99082.0,99050.0,0.01009591]
[1763058444959,0.09816915,99088.0,99064.0,0.20188968]
[1763058444960,0.09816915,99065.0,99064.0,0.20188968]
[1763058445170,0.09816915,99088.0,99070.0,0.20187633]
[1763058445378,0.09816915,99088.0,99073.0,0.20187057]
[1763058445589,0.09816915,99088.0,99064.0,0.04037815]
[1763058445794,0.09816915,99072.0,99057.0,0.001]
[1763058445985,0.09816915,99072.0,99051.0,0.52491414]
[1763058446197,0.09816915,99088.0,99064.0,0.002]
[1763058446431,0.09816915,99088.0,99065.0,0.20188764]
[1763058446644,0.18930915,99116.0,99093.0,0.20182938]
[1763058446645,0.01,99110.0,99093.0,0.20182938]
[1763058446853,0.09816915,99097.0,99079.0,0.323]
[1763058447064,0.09816915,99097.0,99064.0,0.001]
[1763058447470,0.09816915,99082.0,99069.0,0.20187808]
[1763058447676,0.09816915,99082.0,99064.0,0.001]
[1763058447885,0.09816915,99082.0,99051.0,0.323]
[1763058448090,0.02,99080.0,99052.0,0.09848336]
[1763058448298,0.02,99080.0,99064.0,0.20188838]
[1763058448505,0.02,99080.0,99052.0,0.09848336]
[1763058448723,0.02,99080.0,99041.0,0.04341874]
[1763058448931,0.02,99080.0,99064.0,0.001]
[1763058449139,0.02,99080.0,99052.0,0.1457]
[1763058449342,0.09816915,99067.0,99064.0,0.001]
[1763058449752,0.09816915,99067.0,99052.0,0.1457]
[1763058449894,0.09816915,99067.0,99056.0,0.15190441]
[1763058450097,0.09816915,99067.0,99052.0,0.1457]
[1763058450311,0.09816915,99067.0,99053.0,0.03476228]
[1763058450542,0.09816915,99067.0,99031.0,0.04341874]
[1763058450744,0.09816915,99067.0,99040.0,0.61422957]
[1763058450946,0.09816915,99067.0,99041.0,0.001]
[1763058451166,0.09816915,99067.0,99048.0,0.20192143]
[1763058451373,0.09816915,99067.0,99050.0,0.2019172]
[1763058451580,0.09816915,99067.0,99064.0,0.001]
[1763058451960,0.09816915,99067.0,99041.0,0.20193505]
[1763058452173,0.09816915,99052.0,99041.0,0.001]
[1763058452376,0.09816915,99067.0,99048.0,0.001]
[1763058452885,0.09816915,99052.0,99048.0,0.00013981]
[1763058453910,0.02,99050.0,99048.0,0.00013981]
[1763058454109,0.06269,99049.0,99048.0,0.00013981]
[1763058455084,0.08112189,99049.0,99048.0,0.00013981]
[1763058455292,0.10105099,99049.0,99048.0,0.00013981]
[1763058455445,0.08112189,99049.0,99048.0,0.00113981]
[1763058455647,0.08112189,99049.0,99048.0,0.00213981]
[1763058455851,0.08112189,99049.0,99048.0,0.00013981]
[1763058456170,0.09816915,99049.0,99048.0,0.00013981]
[1763058456367,0.16085915,99049.0,99048.0,0.00013981]
[1763058456549,0.17694507,99049.0,99048.0,0.00013981]
[1763058456748,0.16085915,99049.0,99048.0,0.00013981]
[1763058457018,0.09816915,99049.0,99048.0,0.00013981]
[1763058457222,0.09816915,99049.0,99028.0,0.2019622]
[1763058457455,0.09816915,99049.0,99018.0,0.04225]
[1763058457456,0.09830889,99049.0,99033.0,0.20195253]
[1763058457708,0.09816915,99034.0,99032.0,0.2019534]
[1763058458349,0.00013974,99049.0,99033.0,0.08449]
[1763058458573,0.00113974,99049.0,99041.0,0.0639]
[1763058458812,0.00113974,99049.0,99048.0,0.04704]
[1763058459305,0.00013974,99049.0,99048.0,0.04704]
[1763058459505,0.00013974,99049.0,99048.0,0.12077101]
[1763058459954,0.00013974,99049.0,99032.0,0.001]
[1763058460161,0.09816915,99041.0,99032.0,0.001]
[1763058460409,0.02,99040.0,99029.0,0.08449]
[1763058460620,0.09816915,99041.0,99029.0,0.08449]
[1763058460822,0.09816915,99041.0,99031.0,0.20195647]
[1763058461026,0.02,99040.0,99026.0,0.2019659]
[1763058461226,0.09816915,99041.0,99025.0,0.20196733]
[1763058461666,0.09816915,99041.0,99021.0,0.08449]
[1763058461875,0.02,99040.0,99023.0,0.20197235]
[1763058462130,0.09816915,99026.0,99021.0,0.08449]
[1763058462563,0.09816915,99026.0,99023.0,0.20197209]
[1763058462796,0.00013974,99049.0,99021.0,0.08449]
[1763058463044,0.00013974,99049.0,99048.0,0.06365]
[1763058464340,0.00013974,99049.0,99030.0,0.08449]
[1763058464541,0.09816915,99047.0,99031.0,0.28644518]
[1763058464670,0.09816915,99047.0,99036.0,0.20194515]
[1763058464871,0.09816915,99047.0,99031.0,0.08449]
[1763058465127,0.00013974,99049.0,99046.0,0.0639]
[1763058465337,0.00113974,99049.0,99046.0,0.0639]
[1763058465899,0.00113974,99049.0,99036.0,0.20194636]
[1763058466095,0.09816915,99044.0,99038.0,0.20194164]
[1763058466315,0.09805679,99044.0,99041.0,0.20193516]
[1763058466515,0.09805679,99044.0,99042.0,0.04038739]
[1763058466727,0.09805679,99044.0,99042.0,0.24232108]
[1763058466927,0.09708801,99044.0,99043.0,0.0639]
[1763058467202,0.09502844,99044.0,99043.0,0.0639]
[1763058468288,0.09502844,99044.0,99043.0,0.0649]
[1763058468522,0.09502844,99044.0,99043.0,0.001]
[1763058468745,0.10454526,99044.0,99043.0,0.001]
[1763058468979,0.16582526,99044.0,99043.0,0.001]
[1763058469444,0.02,99040.0,99008.0,0.08449]
[1763058469659,0.09816915,99020.0,99008.0,0.08449]
[1763058470244,0.09816915,99020.0,99000.0,28.72648571]
[1763058470562,0.09816915,99020.0,99001.0,0.20201706]
[1763058470789,0.09816915,99020.0,99019.0,0.00123336]
[1763058470912,0.11816915,99020.0,99019.0,0.00223336]
[1763058471112,0.09816915,99020.0,99019.0,0.00223336]
[1763058471476,0.09816915,99020.0,99019.0,0.00023336]
[1763058471679,0.09816915,99020.0,99019.0,0.00123336]
[1763058472102,0.11816915,99020.0,99019.0,0.00123336]
[1763058472835,0.11816915,99020.0,99019.0,0.00223336]
[1763058473240,0.09816915,99020.0,99019.0,0.00223336]
[1763058473731,0.09816915,99029.0,99019.0,0.00223336]
[1763058473968,0.10798606,99029.0,99019.0,0.00223336]
[1763058474474,0.09043,99028.0,99019.0,0.00223336]
[1763058474703,0.06269,99020.0,99019.0,0.00023336]
[1763058474932,0.42412597,99020.0,99019.0,0.00023336]
[1763058475153,0.46753857,99020.0,99019.0,0.00023336]
[1763058475795,0.09112597,99020.0,99019.0,0.00023336]
[1763058476001,0.08112597,99020.0,99019.0,0.00023336]
[1763058476208,0.10112597,99020.0,99019.0,0.00023336]
[1763058476628,0.323,99009.0,99000.0,28.72648571]
[1763058476854,0.069,99001.0,99000.0,28.72648571]
[1763058477089,0.09617957,99001.0,99000.0,28.72648571]
[1763058477292,0.09617957,99001.0,99000.0,28.66593571]
[1763058477515,0.08743597,99001.0,99000.0,28.66593571]
[1763058478065,0.4264227,99001.0,99000.0,28.66593571]
[1763058478441,0.4284227,99001.0,99000.0,28.59093571]
[1763058478850,2.4284227,99001.0,99000.0,28.59093571]
[1763058479059,2.52690606,99001.0,99000.0,28.59093571]
[1763058479262,2.5703248,99001.0,99000.0,28.59093571]
[1763058479480,2.5723248,99001.0,99000.0,28.59093571]
[1763058479702,2.52690606,99001.0,99000.0,28.59093571]
[1763058480121,2.4284227,99001.0,99000.0,28.59093571]
[1763058480335,2.4294227,99001.0,99000.0,28.59093571]
[1763058480511,0.4294227,99001.0,99000.0,28.59093571]
[1763058480923,0.4264227,99001.0,99000.0,28.59093571]
[1763058481080,2.47284144,99001.0,99000.0,28.1978727]
[1763058481287,0.4314227,99001.0,99000.0,28.1978727]
[1763058481487,0.4294227,99001.0,99000.0,28.1978727]
[1763058482263,0.1034227,99001.0,99000.0,28.1978727]
[1763058482468,0.0344227,99001.0,99000.0,28.1978727]
[1763058482672,0.01798673,99001.0,99000.0,28.19836551]
[1763058482877,0.01998673,99001.0,99000.0,28.19836551]
[1763058483103,0.03637461,99001.0,99000.0,28.19836551]
[1763058483311,0.00013963,99001.0,99000.0,28.19836551]
[1763058483511,0.00313963,99001.0,99000.0,28.19836551]
[1763058483714,0.00213963,99001.0,99000.0,28.19836551]
[1763058484192,0.00013963,99001.0,99000.0,28.19836551]
[1763058484467,0.00997051,99001.0,99000.0,28.19936551]
[1763058484702,0.02836721,99001.0,99000.0,28.19936551]
[1763058484923,0.04157721,99001.0,99000.0,28.19936551]